fUST/lending_fUST_20250403
["ID","MTS","AMOUNT","RATE_DAILY","PERIOD"]
[357041598,1743616239153,-500.0,0.00017534,2]
[357041599,1743616239162,-500.0,0.00017534,2]
[357041600,1743616239171,-500.0,0.00017534,2]
[357041601,1743616239180,-500.0,0.00017534,2]
[357041602,1743616239190,-500.0,0.00017534,2]
[357041603,1743616239199,-500.0,0.00017534,2]
[357041604,1743616239209,-500.0,0.00017534,2]
[357041605,1743616239218,-500.0,0.00017534,2]
[357041606,1743616239228,-500.0,0.00017534,2]
[357041607,1743616239240,-500.0,0.00017534,2]
[357041608,1743616239250,-638.73,0.00017534,2]
[357041609,1743616239260,-1013.82,0.00017534,2]
[357041610,1743616239269,-500.0,0.00017534,2]
[357041611,1743616239278,-500.0,0.00017534,2]
[357041612,1743616239288,-500.0,0.00017534,2]
[357041613,1743616239298,-500.0,0.00017534,2]
[357041614,1743616239308,-500.0,0.00017534,2]
[357041615,1743616239317,-420.0,0.0001773,2]
[357041616,1743616239326,-506.61063922,0.00017771,2]
[357041617,1743616239336,-202.4027083,0.0001779,2]
[357041618,1743616239348,-500.0,0.0001779,2]
[357041619,1743616239359,-500.0,0.0001779,2]
[357041620,1743616239369,-500.0,0.0001779,2]
[357041621,1743616239379,-500.0,0.0001779,2]
[357041622,1743616239388,-500.0,0.0001779,2]
[357041623,1743616239398,-500.0,0.0001779,2]
[357041624,1743616239409,-500.0,0.0001779,2]
[357041625,1743616239419,-610.95,0.00017808,2]
[357041626,1743616239430,-500.0,0.00017808,2]
[357041627,1743616239439,-500.0,0.00017808,2]
[357041628,1743616239450,-500.0,0.00017808,2]
[357041629,1743616239459,-500.0,0.00017808,2]
[357041630,1743616239468,-500.0,0.00017808,2]
[357041631,1743616239478,-751.62,0.00017808,2]
[357041633,1743616239490,-500.0,0.00017808,2]
[357041635,1743616239501,-500.0,0.00017808,2]
[357041636,1743616239510,-500.0,0.00017808,2]
[357041637,1743616239520,-500.0,0.00017808,2]
[357041638,1743616239530,-500.0,0.00017808,2]
[357041639,1743616239539,-500.0,0.00017808,2]
[357041640,1743616239548,-949.78,0.00017808,2]
[357041641,1743616239558,-500.0,0.00017808,2]
[357041642,1743616239571,-500.0,0.00017808,2]
[357041643,1743616239580,-500.0,0.00017808,2]
[357041644,1743616239589,-500.0,0.00017808,2]
[357041645,1743616239599,-500.0,0.00017808,2]
[357041646,1743616239609,-500.0,0.00017808,2]
[357041647,1743616239618,-500.0,0.00017808,2]
[357041648,1743616239629,-500.0,0.00017808,2]
[357041650,1743616239639,-500.0,0.00017808,2]
[357041651,1743616239651,-500.0,0.00017808,2]
[357041652,1743616239663,-500.0,0.00017808,2]
[357041653,1743616239673,-638.73,0.00017808,2]
[357041654,1743616239683,-1013.82,0.00017808,2]
[357041655,1743616239693,-500.0,0.00017808,2]
[357041656,1743616239702,-500.0,0.00017808,2]
[357041657,1743616239712,-500.0,0.00017808,2]
[357041658,1743616239722,-500.0,0.00017808,2]
[357041659,1743616239732,-500.0,0.00017843,2]
[357041660,1743616239742,-500.0,0.00017843,2]
[357041661,1743616239751,-500.0,0.00017843,2]
[357041662,1743616239761,-360.13760017,0.00017843,2]
[357041663,1743616239770,-500.0,0.00017843,2]
[357041664,1743616239779,-500.0,0.00017843,2]
[357041665,1743616239788,-500.0,0.00017843,2]
[357041666,1743616239798,-183.67877057,0.00017843,2]
[357041667,1743616239808,-500.0,0.00017948,2]
[357041668,1743616239818,-500.0,0.00018008,2]
[357041669,1743616239828,-500.0,0.00018008,2]
[357041670,1743616239839,-500.0,0.00018008,2]
[357041671,1743616239849,-500.0,0.00018008,2]
[357041672,1743616239858,-500.0,0.00018008,2]
[357041673,1743616239868,-610.95,0.00018082,2]
[357041674,1743616239878,-500.0,0.00018082,2]
[357041675,1743616239888,-500.0,0.00018082,2]
[357041677,1743616239897,-500.0,0.00018082,2]
[357041679,1743616239907,-500.0,0.00018082,2]
[357041681,1743616239916,-500.0,0.00018082,2]
[357041683,1743616239926,-751.62,0.00018082,2]
[357041685,1743616239935,-500.0,0.00018082,2]
[357041687,1743616239944,-500.0,0.00018082,2]
[357041689,1743616239953,-500.0,0.00018082,2]
[357041691,1743616239962,-500.0,0.00018082,2]
[357041693,1743616239971,-500.0,0.00018082,2]
[357041695,1743616239981,-500.0,0.00018082,2]
[357041697,1743616239990,-949.78,0.00018082,2]
[357041698,1743616240000,-500.0,0.00018082,2]
[357041700,1743616240009,-500.0,0.00018082,2]
[357041702,1743616240020,-500.0,0.00018082,2]
[357041705,1743616240030,-500.0,0.00018082,2]
[357041706,1743616240039,-500.0,0.00018082,2]
[357041708,1743616240048,-500.0,0.00018082,2]
[357041709,1743616240058,-500.0,0.00018082,2]
[357041710,1743616240067,-500.0,0.00018082,2]
[357041711,1743616240076,-500.0,0.00018082,2]
[357041712,1743616240086,-500.0,0.00018082,2]
[357041713,1743616240095,-500.0,0.00018082,2]
[357041714,1743616240104,-638.73,0.00018082,2]
[357041716,1743616240115,-1013.82,0.00018082,2]
[357041717,1743616240124,-500.0,0.00018082,2]
[357041718,1743616240133,-500.0,0.00018082,2]
[357041719,1743616240142,-500.0,0.00018082,2]
[357041720,1743616240152,-1934.1943795,0.000183,2]
[357041721,1743616240161,-1934.19437941,0.000183,2]
[357041722,1743616240171,-1934.19437941,0.000183,2]
[357041723,1743616240180,-2380.57281658,0.00018333,2]
[357041724,1743616240189,-610.95,0.00018356,2]
[357041725,1743616240199,-500.0,0.00018356,2]
[357041726,1743616240208,-500.0,0.00018356,2]
[357041727,1743616240218,-500.0,0.00018356,2]
[357041728,1743616240227,-500.0,0.00018356,2]
[357041729,1743616240238,-500.0,0.00018356,2]
[357041730,1743616240247,-751.62,0.00018356,2]
[357041731,1743616240256,-500.0,0.00018356,2]
[357041732,1743616240266,-500.0,0.00018356,2]
[357041733,1743616240275,-500.0,0.00018356,2]
[357041734,1743616240284,-500.0,0.00018356,2]
[357041735,1743616240294,-500.0,0.00018356,2]
[357041736,1743616240303,-500.0,0.00018356,2]
[357041737,1743616240313,-949.78,0.00018356,2]
[357041738,1743616240323,-500.0,0.00018356,2]
[357041739,1743616240332,-500.0,0.00018356,2]
[357041740,1743616240452,-500.0,0.00018356,2]
[357041741,1743616240467,-500.0,0.00018356,2]
[357041742,1743616240476,-500.0,0.00018356,2]
[357041743,1743616240487,-500.0,0.00018356,2]
[357041744,1743616240497,-500.0,0.00018356,2]
[357041745,1743616240506,-500.0,0.00018356,2]
[357041746,1743616240516,-381.88,0.00018356,2]
[357041747,1743616240525,-500.0,0.00018356,2]
[357041748,1743616240535,-500.0,0.00018356,2]
[357041749,1743616240545,-638.73,0.00018356,2]
[357041750,1743616240554,-1013.82,0.00018356,2]
[357041751,1743616240567,-500.0,0.00018356,2]
[357041752,1743616240577,-500.0,0.00018356,2]
[357041753,1743616240586,-500.0,0.00018356,2]
[357041754,1743616240595,-10223.50678597,0.00018523,2]
[357041755,1743616240605,-200.0,0.00018554,2]
[357041756,1743616240614,-212841.79489396,0.00018565,2]
[357041757,1743616240624,-610.95,0.0001863,2]
[357041758,1743616240633,-500.0,0.0001863,2]
[357041759,1743616240643,-559.04,0.0001863,2]
[357041760,1743616240652,-500.0,0.0001863,2]
[357041761,1743616240662,-751.62,0.0001863,2]
[357041762,1743616240672,-497.35,0.0001863,2]
[357041763,1743616240681,-949.78,0.0001863,2]
[357041764,1743616240690,-500.0,0.0001863,2]
[357041765,1743616240700,-500.0,0.0001863,2]
[357041766,1743616240709,-69.23570072,0.0001863,2]
[357041767,1743616240724,-430.76429928,0.0001863,2]
[357041768,1743616240734,-500.0,0.0001863,2]
[357041769,1743616240744,-530.88,0.0001863,2]
[357041770,1743616240753,-500.0,0.0001863,2]
[357041771,1743616240763,-500.0,0.0001863,2]
[357041772,1743616240772,-638.73,0.0001863,2]
[357041773,1743616240781,-1013.82,0.0001863,2]
[357041774,1743616240791,-500.0,0.0001863,2]
[357041775,1743616240800,-500.0,0.0001863,2]
[357041776,1743616240810,-500.0,0.0001863,2]
[357041777,1743616240819,-542.0,0.00018719,2]
[357041778,1743616240828,-1643.0,0.00018719,2]
[357041779,1743616240838,-401.0,0.00018719,2]
[357041780,1743616240847,-1934.19437941,0.00018762,2]
[357041781,1743616240857,-500.0,0.00018833,2]
[357041782,1743616240868,-610.95,0.00018904,2]
[357041783,1743616240877,-555.77883947,0.00018904,2]
[357041784,1743616240886,-751.62,0.00018904,2]
[357041785,1743616240896,-949.78,0.00018904,2]
[357041786,1743616240906,-500.0,0.00018904,2]
[357041787,1743616240915,-230.41,0.00018904,2]
[357041788,1743616240925,-500.0,0.00018904,2]
[357041789,1743616240934,-500.0,0.00018904,2]
[357041790,1743616240943,-500.0,0.00018904,2]
[357041791,1743616240953,-638.73,0.00018904,2]
[357041792,1743616240962,-1013.82,0.00018904,2]
[357041793,1743616240972,-530.64,0.00018904,2]
[357041794,1743616240982,-500.0,0.00018904,2]
[357041795,1743616240992,-38099.59051209,0.00019,2]
[357041796,1743616241002,-610.95,0.00019178,2]
[357041797,1743616241012,-751.62,0.00019178,2]
[357041798,1743616241021,-949.78,0.00019178,2]
[357041799,1743616241031,-500.0,0.00019178,2]
[357041800,1743616241040,-500.0,0.00019178,2]
[357041801,1743616241050,-500.0,0.00019178,2]
[357041802,1743616241060,-515.12,0.00019178,2]
[357041803,1743616241069,-638.73,0.00019178,2]
[357041804,1743616241079,-1013.82,0.00019178,2]
[357041805,1743616241088,-500.0,0.00019178,2]
[357041806,1743616241098,-587.0,0.0001938,2]
[357041807,1743616241107,-1934.19437941,0.00019383,2]
[357041808,1743616241118,-610.95,0.00019452,2]
[357041809,1743616241127,-751.62,0.00019452,2]
[357041810,1743616241137,-949.78,0.00019452,2]
[357041811,1743616241147,-500.0,0.00019452,2]
[357041812,1743616241157,-500.0,0.00019452,2]
[357041813,1743616241167,-500.0,0.00019452,2]
[357041814,1743616241176,-638.73,0.00019452,2]
[357041815,1743616241186,-1013.82,0.00019452,2]
[357041816,1743616241195,-500.0,0.00019452,2]
[357041817,1743616241205,-610.95,0.00019726,2]
[357041818,1743616241214,-751.62,0.00019726,2]
[357041819,1743616241224,-949.78,0.00019726,2]
[357041820,1743616241235,-281.33,0.00019726,2]
[357041821,1743616241245,-500.0,0.00019726,2]
[357041822,1743616241254,-500.0,0.00019726,2]
[357041823,1743616241264,-638.73,0.00019726,2]
[357041824,1743616241274,-1013.82,0.00019726,2]
[357041825,1743616241286,-500.0,0.00019726,2]
[357041826,1743616241295,-207.4,0.00019923,2]
[357041827,1743616241305,-1000.0,0.0002,2]
[357041828,1743616241316,-1000.0,0.0002,2]
[357041829,1743616241326,-1000.0,0.0002,2]
[357041830,1743616241336,-4039.0,0.0002,2]
[357041831,1743616241347,-211.546,0.0002,2]
[357041832,1743616241357,-610.95,0.0002,2]
[357041833,1743616241367,-751.62,0.0002,2]
[357041834,1743616241376,-949.78,0.0002,2]
[357041835,1743616241386,-500.0,0.0002,2]
[357041836,1743616241396,-500.0,0.0002,2]
[357041837,1743616241406,-638.73,0.0002,2]
[357041838,1743616241417,-1013.82,0.0002,2]
[357041839,1743616241427,-500.0,0.0002,2]
[357041840,1743616241436,-1934.19437941,0.00020003,2]
[357041841,1743616241446,-477.809623,0.00020171,2]
[357041842,1743616241456,-500.0,0.00020271,2]
[357041843,1743616241466,-610.95,0.00020273,2]
[357041844,1743616241476,-751.62,0.00020273,2]
[357041845,1743616241488,-949.78,0.00020273,2]
[357041846,1743616241498,-500.0,0.00020273,2]
[357041847,1743616241508,-500.0,0.00020273,2]
[357041848,1743616241517,-638.73,0.00020273,2]
[357041849,1743616241527,-1013.82,0.00020273,2]
[357041850,1743616241536,-500.0,0.00020273,2]
[357041851,1743616241546,-2380.57281658,0.0002033,2]
[357041852,1743616241556,-610.95,0.00020547,2]
[357041853,1743616241566,-751.62,0.00020547,2]
[357041854,1743616241578,-949.78,0.00020547,2]
[357041855,1743616241587,-480.55,0.00020547,2]
[357041856,1743616241597,-500.0,0.00020547,2]
[357041857,1743616241607,-638.73,0.00020547,2]
[357041858,1743616241617,-1013.82,0.00020547,2]
[357041859,1743616241626,-500.0,0.00020547,2]
[357041860,1743616241636,-1934.19437941,0.00020624,2]
[357041861,1743616241647,-1466.762086,0.00020806,2]
[357041862,1743616241657,-610.95,0.00020821,2]
[357041863,1743616241667,-751.62,0.00020821,2]
[357041864,1743616241677,-949.78,0.00020821,2]
[357041865,1743616241687,-500.0,0.00020821,2]
[357041866,1743616241697,-638.73,0.00020821,2]
[357041867,1743616241706,-1013.82,0.00020821,2]
[357041868,1743616241716,-500.0,0.00020821,2]
[357041869,1743616241725,-610.95,0.00021095,2]
[357041870,1743616241737,-751.62,0.00021095,2]
[357041871,1743616241747,-949.78,0.00021095,2]
[357041872,1743616241756,-500.0,0.00021095,2]
[357041873,1743616241766,-638.73,0.00021095,2]
[357041874,1743616241776,-1013.82,0.00021095,2]
[357041875,1743616241786,-500.0,0.00021095,2]
[357041876,1743616241796,-477.809623,0.00021116,2]
[357041877,1743616241805,-613.0,0.00021184,2]
[357041878,1743616241815,-1934.19437941,0.00021245,3]
[357041879,1743616241824,-836.00498798,0.00021254,2]
[357041880,1743616241833,-160.0,0.00021254,2]
[357041881,1743616241842,-500.0,0.00021338,2]
[357041882,1743616241852,-477.809623,0.00021352,6]
[357041883,1743616241861,-477.809623,0.00021352,6]
[357041884,1743616241871,-477.809623,0.00021352,6]
[357041885,1743616241880,-477.809623,0.00021352,6]
[357041886,1743616241889,-477.809623,0.00021352,6]
[357041887,1743616241899,-610.95,0.00021369,2]
[357041888,1743616241908,-751.62,0.00021369,2]
[357041889,1743616241918,-949.78,0.00021369,2]
[357041890,1743616241928,-271.68,0.00021369,2]
[357041891,1743616241937,-638.73,0.00021369,2]
[357041892,1743616241946,-1013.82,0.00021369,2]
[357041893,1743616241955,-410.32,0.00021369,2]
[357041894,1743616241964,-477.809623,0.00021386,14]
[357041895,1743616241973,-477.809623,0.00021386,14]
[357041896,1743616241983,-477.809623,0.00021386,14]
[357041897,1743616241992,-477.809623,0.00021386,14]
[357041898,1743616242002,-477.809623,0.00021386,14]
[357041899,1743616242011,-12458.93820146,0.0002145,3]
[357041900,1743616242020,-160.0,0.0002145,3]
[357041901,1743616242029,-836.00498798,0.0002145,3]
[357041902,1743616242039,-160.0,0.0002145,3]
[357041903,1743616242049,-52034.81748545,0.0002145,2]
[357041904,1743616242062,-64076.7781376,0.0002145,2]
[357041905,1743616242154,-500.0,0.00017808,2]
[357041906,1743616242163,-500.0,0.00018082,2]
[357041907,1743616242173,-500.0,0.00018356,2]
[357041908,1743616242183,-500.0,0.0001863,2]
[357041909,1743616242192,-500.0,0.00018904,2]
[357041910,1743616242201,-202.72,0.00018904,2]
[357041911,1743616242211,-500.0,0.00019178,2]
[357041912,1743616242220,-500.0,0.00019452,2]
[357041913,1743616242229,-567.86053785,0.00019726,2]
[357041914,1743616242242,-10053.0574718,0.0002145,2]
[357041959,1743616243049,-321.9971328,0.00016438,2]
[357041960,1743616243103,-178.0028672,0.00016438,2]
[357041961,1743616243113,-500.0,0.00016438,2]
[357041962,1743616243123,-471.0216938,0.00016712,2]
[357041963,1743616243134,-28.9783062,0.00016712,2]
[357041964,1743616243143,-500.0,0.00016712,2]
[357041965,1743616243152,-500.0,0.00016986,2]
[357041966,1743616243162,-500.0,0.0001726,2]
[357041967,1743616243171,-500.0,0.00017534,2]
[357041968,1743616243181,-500.0,0.00017808,2]
[357041969,1743616243190,-58040.59456376,0.0002145,2]
[357042107,1743616335725,379.02300914,0.000266,31]
[357042108,1743616335751,213.18699086,0.000266,31]
[357042109,1743616335781,192.81300914,0.000266,31]
[357042110,1743616340799,592.21,0.000249,31]
[357042111,1743616340846,592.21,0.000249,31]
[357042112,1743616340902,592.21,0.000249,31]
[357042113,1743616340971,592.21,0.000249,31]
[357042114,1743616341062,592.21,0.000249,31]
[357042115,1743616341110,592.21,0.000249,31]
[357042116,1743616341164,592.21,0.000249,31]
[357042117,1743616341213,592.21,0.000249,31]
[357042118,1743616341262,592.21,0.000249,31]
[357042119,1743616341480,592.21,0.000249,31]
[357042120,1743616341528,592.21,0.000249,31]
[357042121,1743616341570,592.21,0.000249,31]
[357042122,1743616341622,592.21,0.000249,31]
[357042123,1743616341666,592.21,0.000249,31]
[357042124,1743616341713,592.21,0.000249,31]
[357042125,1743616341757,592.21,0.000249,31]
[357042131,1743616952818,489.66,0.000249,31]
[357042132,1743616952879,489.66,0.000249,31]
[357042133,1743616952937,489.66,0.000249,31]
[357042134,1743616952989,489.66,0.000249,31]
[357042135,1743616953052,489.66,0.000249,31]
[357042136,1743616953122,489.66,0.000249,31]
[357042137,1743616953180,489.66,0.000249,31]
[357042138,1743616953240,489.66,0.000249,31]
[357042139,1743616953299,489.66,0.000249,31]
[357042140,1743616953366,489.66,0.000249,31]
[357042141,1743616953407,489.66,0.000249,31]
[357042142,1743616953447,489.66,0.000249,31]
[357042143,1743616953494,489.66,0.000249,31]
[357042144,1743616953551,489.66,0.000249,31]
[357042145,1743616953613,489.66,0.000249,31]
[357042146,1743616953671,489.66,0.000249,31]
[357042149,1743617004585,175.868344,0.00013699,2]
[357042214,1743617438013,-366.6685119,0.00015506,2]
[357042215,1743617438023,-300.0,0.0001622,2]
[357042216,1743617438032,-24900.0,0.00016221,2]
[357042217,1743617438043,-240.267348,0.00016221,2]
[357042218,1743617438052,-1628.28699983,0.00016338,2]
[357042219,1743617438062,-500.0,0.00016434,2]
[357042220,1743617438071,-500.0,0.00016434,2]
[357042221,1743617438081,-184.22413723,0.00016434,2]
[357042222,1743617438090,-500.0,0.00016434,2]
[357042223,1743617438099,-500.0,0.00016434,2]
[357042224,1743617438109,-500.0,0.00016434,2]
[357042225,1743617438118,-391.62677731,0.00016434,2]
[357042226,1743617438128,-500.0,0.00016438,2]
[357042227,1743617438138,-500.0,0.00016438,2]
[357042228,1743617438147,-500.0,0.00016438,2]
[357042229,1743617438156,-500.0,0.00016438,2]
[357042230,1743617438166,-500.0,0.00016438,2]
[357042231,1743617438175,-500.0,0.00016438,2]
[357042232,1743617438185,-645.67,0.00016438,2]
[357042233,1743617438194,-500.0,0.00016438,2]
[357042234,1743617438204,-181.08065186,0.00016438,2]
[357042235,1743617438213,-500.0,0.00016438,2]
[357042236,1743617438223,-500.0,0.00016438,2]
[357042237,1743617438233,-500.0,0.00016438,2]
[357042238,1743617438247,-500.0,0.00016438,2]
[357042239,1743617438257,-500.0,0.00016438,2]
[357042240,1743617438267,-500.0,0.00016438,2]
[357042241,1743617438277,-500.0,0.00016438,2]
[357042242,1743617438287,-540.76,0.00016438,2]
[357042243,1743617438296,-500.0,0.00016438,2]
[357042244,1743617438306,-500.0,0.00016438,2]
[357042245,1743617438315,-306.36714229,0.00016438,2]
[357042246,1743617438325,-500.0,0.00016438,2]
[357042247,1743617438334,-500.0,0.00016438,2]
[357042248,1743617438344,-500.0,0.00016438,2]
[357042249,1743617438353,-500.0,0.00016438,2]
[357042250,1743617438363,-523.55,0.00016438,2]
[357042251,1743617438372,-500.0,0.00016438,2]
[357042252,1743617438382,-319.30224882,0.00016438,2]
[357042253,1743617438391,-550.41,0.00016438,2]
[357042254,1743617438400,-500.0,0.00016438,2]
[357042255,1743617438410,-500.0,0.00016438,2]
[357042256,1743617438420,-500.0,0.00016438,2]
[357042257,1743617438430,-500.0,0.00016438,2]
[357042258,1743617438439,-500.0,0.00016438,2]
[357042259,1743617438448,-500.0,0.00016438,2]
[357042260,1743617438458,-500.0,0.00016438,2]
[357042261,1743617438468,-500.0,0.00016438,2]
[357042262,1743617438477,-500.0,0.00016438,2]
[357042263,1743617438487,-500.0,0.00016438,2]
[357042264,1743617438496,-500.0,0.00016438,2]
[357042265,1743617438505,-824.45,0.00016438,2]
[357042266,1743617438515,-500.0,0.00016438,2]
[357042267,1743617438524,-500.0,0.00016438,2]
[357042268,1743617438534,-500.0,0.00016438,2]
[357042269,1743617438543,-500.0,0.00016438,2]
[357042270,1743617438552,-500.0,0.00016438,2]
[357042271,1743617438562,-500.0,0.00016438,2]
[357042272,1743617438571,-500.0,0.00016438,2]
[357042273,1743617438581,-500.0,0.00016438,2]
[357042274,1743617438590,-500.0,0.00016712,2]
[357042275,1743617438599,-500.0,0.00016712,2]
[357042276,1743617438608,-500.0,0.00016712,2]
[357042277,1743617438617,-500.0,0.00016712,2]
[357042278,1743617438626,-500.0,0.00016712,2]
[357042279,1743617438635,-500.0,0.00016712,2]
[357042280,1743617438644,-500.0,0.00016712,2]
[357042281,1743617438654,-500.0,0.00016712,2]
[357042282,1743617438663,-500.0,0.00016712,2]
[357042283,1743617438673,-500.0,0.00016712,2]
[357042284,1743617438683,-540.76,0.00016712,2]
[357042285,1743617438692,-500.0,0.00016712,2]
[357042286,1743617438701,-500.0,0.00016712,2]
[357042287,1743617438710,-500.0,0.00016712,2]
[357042288,1743617438720,-500.0,0.00016712,2]
[357042289,1743617438729,-523.55,0.00016712,2]
[357042290,1743617438739,-500.0,0.00016712,2]
[357042291,1743617438749,-500.0,0.00016712,2]
[357042292,1743617438758,-500.0,0.00016712,2]
[357042293,1743617438768,-500.0,0.00016712,2]
[357042294,1743617438778,-500.0,0.00016712,2]
[357042295,1743617438787,-274.09887936,0.00016712,2]
[357042296,1743617438797,-500.0,0.00016712,2]
[357042297,1743617438807,-500.0,0.00016712,2]
[357042298,1743617438817,-500.0,0.00016712,2]
[357042299,1743617438827,-500.0,0.00016712,2]
[357042300,1743617438836,-500.0,0.00016712,2]
[357042301,1743617438846,-824.45,0.00016712,2]
[357042302,1743617438856,-500.0,0.00016712,2]
[357042303,1743617438866,-500.0,0.00016712,2]
[357042304,1743617438875,-500.0,0.00016712,2]
[357042305,1743617438884,-500.0,0.00016712,2]
[357042306,1743617438894,-500.0,0.00016712,2]
[357042307,1743617438903,-500.0,0.00016712,2]
[357042308,1743617438912,-500.0,0.00016712,2]
[357042309,1743617438922,-500.0,0.00016712,2]
[357042310,1743617438933,-500.0,0.00016985,2]
[357042311,1743617438943,-307.54667935,0.00016985,2]
[357042312,1743617438952,-500.0,0.00016986,2]
[357042313,1743617438961,-500.0,0.00016986,2]
[357042314,1743617438971,-500.0,0.00016986,2]
[357042315,1743617438980,-500.0,0.00016986,2]
[357042316,1743617438989,-500.0,0.00016986,2]
[357042317,1743617438998,-500.0,0.00016986,2]
[357042318,1743617439010,-500.0,0.00016986,2]
[357042319,1743617439019,-500.0,0.00016986,2]
[357042320,1743617439028,-500.0,0.00016986,2]
[357042321,1743617439037,-500.0,0.00016986,2]
[357042322,1743617439047,-540.76,0.00016986,2]
[357042323,1743617439056,-500.0,0.00016986,2]
[357042324,1743617439065,-500.0,0.00016986,2]
[357042325,1743617439074,-500.0,0.00016986,2]
[357042326,1743617439084,-500.0,0.00016986,2]
[357042327,1743617439093,-523.55,0.00016986,2]
[357042328,1743617439102,-500.0,0.00016986,2]
[357042329,1743617439111,-500.0,0.00016986,2]
[357042330,1743617439121,-500.0,0.00016986,2]
[357042331,1743617439130,-500.0,0.00016986,2]
[357042332,1743617439139,-500.0,0.00016986,2]
[357042333,1743617439149,-500.0,0.00016986,2]
[357042334,1743617439158,-500.0,0.00016986,2]
[357042335,1743617439167,-500.0,0.00016986,2]
[357042336,1743617439177,-500.0,0.00016986,2]
[357042337,1743617439186,-500.0,0.00016986,2]
[357042338,1743617439195,-500.0,0.00016986,2]
[357042339,1743617439204,-824.45,0.00016986,2]
[357042340,1743617439214,-500.0,0.00016986,2]
[357042341,1743617439223,-500.0,0.00016986,2]
[357042342,1743617439232,-500.0,0.00016986,2]
[357042343,1743617439243,-500.0,0.00016986,2]
[357042344,1743617439252,-500.0,0.00016986,2]
[357042345,1743617439261,-500.0,0.00016986,2]
[357042346,1743617439271,-570.18359456,0.00016986,2]
[357042347,1743617439280,-543.59326599,0.0001726,2]
[357042348,1743617439289,-500.0,0.0001726,2]
[357042349,1743617439298,-500.0,0.0001726,2]
[357042350,1743617439308,-500.0,0.0001726,2]
[357042351,1743617439317,-500.0,0.0001726,2]
[357042352,1743617439326,-500.0,0.0001726,2]
[357042353,1743617439336,-500.0,0.0001726,2]
[357042354,1743617439345,-500.0,0.0001726,2]
[357042355,1743617439354,-500.0,0.0001726,2]
[357042356,1743617439364,-500.0,0.0001726,2]
[357042357,1743617439373,-540.76,0.0001726,2]
[357042358,1743617439383,-500.0,0.0001726,2]
[357042359,1743617439392,-500.0,0.0001726,2]
[357042360,1743617439401,-500.0,0.0001726,2]
[357042361,1743617439410,-500.0,0.0001726,2]
[357042362,1743617439419,-523.55,0.0001726,2]
[357042363,1743617439429,-484.01,0.0001726,2]
[357042364,1743617439438,-500.0,0.0001726,2]
[357042365,1743617439448,-500.0,0.0001726,2]
[357042366,1743617439457,-500.0,0.0001726,2]
[357042367,1743617439467,-500.0,0.0001726,2]
[357042368,1743617439476,-500.0,0.0001726,2]
[357042369,1743617439486,-500.0,0.0001726,2]